[Event "Titled Tuesday Blitz September 27 Early 2022"]
[White "Tatarinov, Dmitry"]
[Black "Moaataz, Ayah"]
[WhiteFideId "24160067"]
[BlackFideId "10615873"]
[WhiteElo "2324"]
[BlackElo "1993"]
[Result "0-1"]
[Round "01"]
[TimeControl "180+1"]
[Date "2022.09.27"]
[WhiteClock "0:01:38"]
[BlackClock "0:01:52"]

1. d4 {[%clk 0:03:00]}  d5 {[%clk 0:02:58]} 2. Nf3 {[%clk 0:03:01]}  c6 {[%clk 0:02:59]} 3. c4 {[%clk 0:03:02]}  Nf6 {[%clk 0:02:59]} 4. Nc3 {[%clk 0:03:02]}  e6 {[%clk 0:02:59]} 5. Bg5 {[%clk 0:03:01]}  Be7 {[%clk 0:02:59]} 6. e3 {[%clk 0:03:02]}  Nbd7 {[%clk 0:02:59]} 7. Bd3 {[%clk 0:03:02]}  h6 {[%clk 0:02:59]} 8. Bh4 {[%clk 0:03:02]}  O-O {[%clk 0:02:59]} 9. O-O {[%clk 0:03:02]}  Re8 {[%clk 0:02:59]} 10. c5 {[%clk 0:02:59]}  b6 {[%clk 0:02:58]} 11. b4 {[%clk 0:02:58]}  a5 {[%clk 0:02:55]} 12. a3 {[%clk 0:02:58]}  Ba6 {[%clk 0:02:52]} 13. Bxa6 {[%clk 0:02:53]}  Rxa6 {[%clk 0:02:52]} 14. Bg3 {[%clk 0:02:53]}  Qa8 {[%clk 0:02:51]} 15. b5 {[%clk 0:02:46]}  cxb5 {[%clk 0:02:50]} 16. Nxb5 {[%clk 0:02:47]}  Bd8 {[%clk 0:02:45]} 17. cxb6 {[%clk 0:02:31]}  Nxb6 {[%clk 0:02:43]} 18. a4 {[%clk 0:02:31]}  Nc4 {[%clk 0:02:42]} 19. Ne5 {[%clk 0:02:29]}  Nxe5 {[%clk 0:02:35]} 20. Bxe5 {[%clk 0:02:30]}  Rc6 {[%clk 0:02:28]} 21. Rc1 {[%clk 0:02:15]}  Nd7 {[%clk 0:02:27]} 22. Bg3 {[%clk 0:02:10]}  Nb6 {[%clk 0:02:27]} 23. Qb3 {[%clk 0:02:08]}  Nc4 {[%clk 0:02:26]} 24. h3 {[%clk 0:02:04]}  Nd2 {[%clk 0:02:25]} 25. Qd3 {[%clk 0:01:57]}  Nxf1 {[%clk 0:02:24]} 26. Rxf1 {[%clk 0:01:58]}  Rc4 {[%clk 0:02:19]} 27. Nd6 {[%clk 0:01:57]}  Qc6 {[%clk 0:02:18]} 28. Nxc4 {[%clk 0:01:53]}  dxc4 {[%clk 0:02:17]} 29. Qc2 {[%clk 0:01:53]}  Be7 {[%clk 0:02:17]} 30. Rc1 {[%clk 0:01:51]}  Rc8 {[%clk 0:02:14]} 31. e4 {[%clk 0:01:50]}  c3 {[%clk 0:02:14]} 32. Rd1 {[%clk 0:01:48]}  Bb4 {[%clk 0:02:13]} 33. d5 {[%clk 0:01:48]}  exd5 {[%clk 0:02:14]} 34. exd5 {[%clk 0:01:49]}  Qc4 {[%clk 0:02:14]} 35. d6 {[%clk 0:01:49]}  Rd8 {[%clk 0:02:13]} 36. d7 {[%clk 0:01:49]}  Qe6 {[%clk 0:02:12]} 37. Qd3 {[%clk 0:01:46]}  g6 {[%clk 0:02:06]} 38. Bc7 {[%clk 0:01:46]}  c2 {[%clk 0:02:04]} 39. Bxd8 {[%clk 0:01:45]}  cxd1=Q+ {[%clk 0:02:02]} 40. Qxd1 {[%clk 0:01:46]}  Bd6 {[%clk 0:01:52]} 41. Bxa5 {[%clk 0:01:41]}  Qxd7 {[%clk 0:01:52]} 42. Bb4 {[%clk 0:01:41]}  Bh2+ {[%clk 0:01:51]} 43. Kxh2 {[%clk 0:01:38]}  Qxd1 {[%clk 0:01:52]} 0-1


[Site "https://www.chess.com"]

[Event "Titled Tuesday Blitz September 27 Early 2022"]
[White "Vagman, Roy"]
[Black "Hambleton, Aman"]
[WhiteFideId "2828995"]
[BlackFideId "2606577"]
[WhiteElo "1945"]
[BlackElo "2538"]
[Result "1-0"]
[Round "01"]
[TimeControl "180+1"]
[Date "2022.09.27"]
[WhiteClock "0:00:10"]
[BlackClock "0:00:01"]

1. e4 {[%clk 0:03:00]}  c5 {[%clk 0:02:54]} 2. Nf3 {[%clk 0:02:59]}  e6 {[%clk 0:02:54]} 3. d4 {[%clk 0:02:59]}  cxd4 {[%clk 0:02:55]} 4. Nxd4 {[%clk 0:02:59]}  Nc6 {[%clk 0:02:55]} 5. Nc3 {[%clk 0:03:00]}  Qc7 {[%clk 0:02:54]} 6. g3 {[%clk 0:02:57]}  a6 {[%clk 0:02:53]} 7. Nxc6 {[%clk 0:02:57]}  dxc6 {[%clk 0:02:25]} 8. Bg2 {[%clk 0:02:57]}  e5 {[%clk 0:02:25]} 9. O-O {[%clk 0:02:57]}  Nf6 {[%clk 0:02:25]} 10. h3 {[%clk 0:02:55]}  Be6 {[%clk 0:02:20]} 11. Be3 {[%clk 0:02:48]}  Be7 {[%clk 0:02:11]} 12. f4 {[%clk 0:02:40]}  Bc4 {[%clk 0:01:07]} 13. Rf2 {[%clk 0:02:39]}  Rd8 {[%clk 0:01:00]} 14. Qe1 {[%clk 0:02:33]}  a5 {[%clk 0:01:00]} 15. fxe5 {[%clk 0:02:09]}  Nd7 {[%clk 0:00:44]} 16. Rd1 {[%clk 0:01:49]}  O-O {[%clk 0:00:33]} 17. Kh2 {[%clk 0:01:37]}  Nxe5 {[%clk 0:00:31]} 18. Qg1 {[%clk 0:01:19]}  Rxd1 {[%clk 0:00:26]} 19. Nxd1 {[%clk 0:01:16]}  Be6 {[%clk 0:00:20]} 20. Rd2 {[%clk 0:01:08]}  Nc4 {[%clk 0:00:19]} 21. Bf4 {[%clk 0:01:04]}  Qb6 {[%clk 0:00:13]} 22. Qxb6 {[%clk 0:01:03]}  Nxb6 {[%clk 0:00:14]} 23. b3 {[%clk 0:01:00]}  a4 {[%clk 0:00:13]} 24. Be3 {[%clk 0:00:56]}  Nd7 {[%clk 0:00:07]} 25. Nf2 {[%clk 0:00:57]}  axb3 {[%clk 0:00:06]} 26. axb3 {[%clk 0:00:57]}  h6 {[%clk 0:00:04]} 27. Nd3 {[%clk 0:00:58]}  Rd8 {[%clk 0:00:02]} 28. Nf4 {[%clk 0:00:55]}  Ne5 {[%clk 0:00:01]} 29. Rf2 {[%clk 0:00:53]}  Re8 {[%clk 0:00:02]} 30. c4 {[%clk 0:00:46]}  Nd7 {[%clk 0:00:02]} 31. Nxe6 {[%clk 0:00:43]}  fxe6 {[%clk 0:00:03]} 32. h4 {[%clk 0:00:44]}  Bc5 {[%clk 0:00:03]} 33. Rd2 {[%clk 0:00:34]}  Bxe3 {[%clk 0:00:03]} 34. Rxd7 {[%clk 0:00:34]}  b6 {[%clk 0:00:03]} 35. Rd6 {[%clk 0:00:27]}  c5 {[%clk 0:00:02]} 36. Rxb6 {[%clk 0:00:24]}  Kf7 {[%clk 0:00:03]} 37. e5 {[%clk 0:00:22]}  Rd8 {[%clk 0:00:03]} 38. Be4 {[%clk 0:00:20]}  Rd4 {[%clk 0:00:03]} 39. Rb7+ {[%clk 0:00:20]}  Kf8 {[%clk 0:00:03]} 40. Bg6 {[%clk 0:00:19]}  Rd2+ {[%clk 0:00:04]} 41. Kh3 {[%clk 0:00:19]}  Rf2 {[%clk 0:00:04]} 42. Rb8+ {[%clk 0:00:17]}  Ke7 {[%clk 0:00:04]} 43. Rb7+ {[%clk 0:00:18]}  Kf8 {[%clk 0:00:04]} 44. h5 {[%clk 0:00:15]}  Bd4 {[%clk 0:00:04]} 45. Rb8+ {[%clk 0:00:14]}  Ke7 {[%clk 0:00:05]} 46. Rb7+ {[%clk 0:00:14]}  Kf8 {[%clk 0:00:05]} 47. Rc7 {[%clk 0:00:13]}  Re2 {[%clk 0:00:03]} 48. Rf7+ {[%clk 0:00:13]}  Kg8 {[%clk 0:00:02]} 49. Re7 {[%clk 0:00:13]}  Rf2 {[%clk 0:00:02]} 50. Re8+ {[%clk 0:00:12]}  Rf8 {[%clk 0:00:03]} 51. Rxe6 {[%clk 0:00:12]}  Rb8 {[%clk 0:00:03]} 52. Re7 {[%clk 0:00:11]}  Kf8 {[%clk 0:00:01]} 53. Rf7+ {[%clk 0:00:11]}  Kg8 {[%clk 0:00:02]} 54. e6 {[%clk 0:00:12]}  Bf6 {[%clk 0:00:01]} 55. Rxf6 {[%clk 0:00:09]}  gxf6 {[%clk 0:00:01]} 56. e7 {[%clk 0:00:10]} 1-0


[Site "https://www.chess.com"]

[Event "Titled Tuesday Blitz September 27 Early 2022"]
[White "Visakh N R"]
[Black "Devaev, Alexander"]
[WhiteFideId "25012223"]
[BlackFideId "4169395"]
[WhiteElo "2448"]
[BlackElo "2185"]
[Result "1-0"]
[Round "01"]
[TimeControl "180+1"]
[Date "2022.09.27"]
[WhiteClock "0:01:14"]
[BlackClock "0:00:55"]

1. c4 {[%clk 0:02:59]}  c5 {[%clk 0:02:59]} 2. Nf3 {[%clk 0:02:58]}  Nf6 {[%clk 0:02:58]} 3. g3 {[%clk 0:02:57]}  e6 {[%clk 0:02:59]} 4. Bg2 {[%clk 0:02:57]}  Be7 {[%clk 0:03:00]} 5. O-O {[%clk 0:02:57]}  O-O {[%clk 0:03:00]} 6. d4 {[%clk 0:02:57]}  cxd4 {[%clk 0:03:01]} 7. Nxd4 {[%clk 0:02:58]}  Nc6 {[%clk 0:03:01]} 8. Nc3 {[%clk 0:02:58]}  Ne5 {[%clk 0:03:02]} 9. b3 {[%clk 0:02:58]}  d6 {[%clk 0:03:02]} 10. Bb2 {[%clk 0:02:58]}  a6 {[%clk 0:03:03]} 11. Qd2 {[%clk 0:02:56]}  Qc7 {[%clk 0:03:03]} 12. Rfd1 {[%clk 0:02:54]}  Rb8 {[%clk 0:03:03]} 13. f4 {[%clk 0:02:53]}  Ng6 {[%clk 0:03:03]} 14. e3 {[%clk 0:02:48]}  Re8 {[%clk 0:03:03]} 15. h3 {[%clk 0:02:41]}  h6 {[%clk 0:03:03]} 16. Qf2 {[%clk 0:02:41]}  Bf8 {[%clk 0:03:02]} 17. Rac1 {[%clk 0:02:37]}  Nd7 {[%clk 0:03:01]} 18. f5 {[%clk 0:02:36]}  Nge5 {[%clk 0:03:01]} 19. Nf3 {[%clk 0:02:20]}  Nxf3+ {[%clk 0:02:59]} 20. Qxf3 {[%clk 0:02:17]}  Ne5 {[%clk 0:03:00]} 21. Qf2 {[%clk 0:02:06]}  Bd7 {[%clk 0:02:55]} 22. fxe6 {[%clk 0:01:57]}  fxe6 {[%clk 0:02:54]} 23. Ne4 {[%clk 0:01:55]}  Bc6 {[%clk 0:02:55]} 24. c5 {[%clk 0:01:54]}  d5 {[%clk 0:02:47]} 25. Qf4 {[%clk 0:01:53]}  dxe4 {[%clk 0:02:21]} 26. Bxe5 {[%clk 0:01:53]}  Qc8 {[%clk 0:01:50]} 27. Bxb8 {[%clk 0:01:52]}  Qxb8 {[%clk 0:01:51]} 28. Qxb8 {[%clk 0:01:52]}  Rxb8 {[%clk 0:01:52]} 29. Rd4 {[%clk 0:01:52]}  Be7 {[%clk 0:01:49]} 30. Bxe4 {[%clk 0:01:46]}  Bg5 {[%clk 0:01:25]} 31. Kf2 {[%clk 0:01:45]}  Rf8+ {[%clk 0:01:23]} 32. Ke2 {[%clk 0:01:45]}  e5 {[%clk 0:01:09]} 33. Rb4 {[%clk 0:01:45]}  Bb5+ {[%clk 0:01:07]} 34. Rxb5 {[%clk 0:01:36]}  axb5 {[%clk 0:01:07]} 35. Bxb7 {[%clk 0:01:37]}  Bd8 {[%clk 0:01:07]} 36. Rd1 {[%clk 0:01:35]}  Bc7 {[%clk 0:01:01]} 37. Rd7 {[%clk 0:01:34]}  Ba5 {[%clk 0:00:59]} 38. c6 {[%clk 0:01:31]}  Rf7 {[%clk 0:00:59]} 39. b4 {[%clk 0:01:24]}  Rxd7 {[%clk 0:00:57]} 40. cxd7 {[%clk 0:01:24]}  Bc7 {[%clk 0:00:57]} 41. Bc6 {[%clk 0:01:22]}  Kf8 {[%clk 0:00:57]} 42. Kd3 {[%clk 0:01:22]}  e4+ {[%clk 0:00:57]} 43. Kxe4 {[%clk 0:01:21]}  Ke7 {[%clk 0:00:58]} 44. g4 {[%clk 0:01:21]}  Bd6 {[%clk 0:00:56]} 45. a3 {[%clk 0:01:21]}  Bh2 {[%clk 0:00:53]} 46. Bxb5 {[%clk 0:01:18]}  Bd6 {[%clk 0:00:53]} 47. Kd5 {[%clk 0:01:17]}  Bg3 {[%clk 0:00:53]} 48. e4 {[%clk 0:01:17]}  Bf2 {[%clk 0:00:54]} 49. e5 {[%clk 0:01:17]}  Be1 {[%clk 0:00:55]} 50. e6 {[%clk 0:01:16]}  Bd2 {[%clk 0:00:55]} 51. Kc6 {[%clk 0:01:16]}  Kd8 {[%clk 0:00:55]} 52. Bc4 {[%clk 0:01:14]} 1-0


[Site "https://www.chess.com"]

[Event "Titled Tuesday Blitz September 27 Early 2022"]
[White "Winkels, Marcel"]
[Black "Gevorgyan, David Sh."]
[WhiteFideId "1003887"]
[BlackFideId "13303244"]
[WhiteElo "1900"]
[BlackElo "2235"]
[Result "0-1"]
[Round "01"]
[TimeControl "180+1"]
[Date "2022.09.27"]
[WhiteClock "0:00:01"]
[BlackClock "0:00:45"]

1. d4 {[%clk 0:03:00]}  Nf6 {[%clk 0:02:59]} 2. Nc3 {[%clk 0:02:59]}  d5 {[%clk 0:02:59]} 3. Bf4 {[%clk 0:02:57]}  c6 {[%clk 0:02:59]} 4. e3 {[%clk 0:02:56]}  g6 {[%clk 0:02:58]} 5. h4 {[%clk 0:02:48]}  h6 {[%clk 0:02:56]} 6. Qf3 {[%clk 0:02:42]}  Bg7 {[%clk 0:02:54]} 7. O-O-O {[%clk 0:02:26]}  Bg4 {[%clk 0:02:53]} 8. Qg3 {[%clk 0:02:21]}  Bxd1 {[%clk 0:02:53]} 9. Kxd1 {[%clk 0:02:19]}  Nh5 {[%clk 0:02:52]} 10. Qh2 {[%clk 0:02:17]}  Nxf4 {[%clk 0:02:52]} 11. Qxf4 {[%clk 0:02:17]}  Qd6 {[%clk 0:02:35]} 12. Qf3 {[%clk 0:02:14]}  Nd7 {[%clk 0:02:34]} 13. Bd3 {[%clk 0:02:11]}  e5 {[%clk 0:02:33]} 14. Qg3 {[%clk 0:02:08]}  O-O-O {[%clk 0:02:27]} 15. Nf3 {[%clk 0:02:06]}  Rhe8 {[%clk 0:02:24]} 16. h5 {[%clk 0:01:58]}  g5 {[%clk 0:02:20]} 17. Bf5 {[%clk 0:01:54]}  Kc7 {[%clk 0:02:12]} 18. a3 {[%clk 0:01:25]}  exd4 {[%clk 0:02:06]} 19. Qxd6+ {[%clk 0:01:22]}  Kxd6 {[%clk 0:02:07]} 20. exd4 {[%clk 0:01:21]}  Nb6 {[%clk 0:02:04]} 21. b3 {[%clk 0:01:20]}  Nc8 {[%clk 0:02:03]} 22. Kd2 {[%clk 0:01:14]}  Ne7 {[%clk 0:02:03]} 23. Bd3 {[%clk 0:01:11]}  Ng8 {[%clk 0:01:54]} 24. Na4 {[%clk 0:01:02]}  b6 {[%clk 0:01:46]} 25. c3 {[%clk 0:01:00]}  Nf6 {[%clk 0:01:43]} 26. Ne5 {[%clk 0:00:58]}  Ne4+ {[%clk 0:01:41]} 27. Bxe4 {[%clk 0:00:44]}  Bxe5 {[%clk 0:01:42]} 28. Bd3 {[%clk 0:00:43]}  Bf4+ {[%clk 0:01:41]} 29. Kc2 {[%clk 0:00:41]}  Ke6 {[%clk 0:01:31]} 30. Nb2 {[%clk 0:00:36]}  Bd6 {[%clk 0:01:27]} 31. a4 {[%clk 0:00:34]}  f5 {[%clk 0:01:27]} 32. Nd1 {[%clk 0:00:32]}  f4 {[%clk 0:01:12]} 33. Re1+ {[%clk 0:00:18]}  Kd7 {[%clk 0:01:11]} 34. Rxe8 {[%clk 0:00:18]}  Rxe8 {[%clk 0:01:11]} 35. Kd2 {[%clk 0:00:18]}  g4 {[%clk 0:01:06]} 36. Bf5+ {[%clk 0:00:17]}  Kc7 {[%clk 0:01:06]} 37. Bxg4 {[%clk 0:00:17]}  c5 {[%clk 0:01:05]} 38. Bf3 {[%clk 0:00:13]}  cxd4 {[%clk 0:01:02]} 39. cxd4 {[%clk 0:00:12]}  Bb4+ {[%clk 0:01:00]} 40. Kd3 {[%clk 0:00:11]}  Kd6 {[%clk 0:00:59]} 41. Nc3 {[%clk 0:00:09]}  Bxc3 {[%clk 0:00:59]} 42. Kxc3 {[%clk 0:00:09]}  a5 {[%clk 0:00:58]} 43. Kd2 {[%clk 0:00:09]}  Rg8 {[%clk 0:00:54]} 44. Kd3 {[%clk 0:00:08]}  Rb8 {[%clk 0:00:53]} 45. Kc2 {[%clk 0:00:06]}  b5 {[%clk 0:00:53]} 46. axb5 {[%clk 0:00:04]}  Rxb5 {[%clk 0:00:54]} 47. Be2 {[%clk 0:00:04]}  Rb8 {[%clk 0:00:53]} 48. Bd3 {[%clk 0:00:03]}  Rg8 {[%clk 0:00:47]} 49. Bf1 {[%clk 0:00:01]}  Rc8+ {[%clk 0:00:45]} 0-1


[Site "https://www.chess.com"]

[Event "Titled Tuesday Blitz September 27 Early 2022"]
[White "Wirig, Anthony"]
[Black "Sprenar, Petr"]
[WhiteFideId "615013"]
[BlackFideId "397164"]
[WhiteElo "2474"]
[BlackElo "2153"]
[Result "1-0"]
[Round "01"]
[TimeControl "180+1"]
[Date "2022.09.27"]
[WhiteClock "0:00:22"]
[BlackClock "0:00:19"]

1. d4 {[%clk 0:02:59]}  d5 {[%clk 0:02:58]} 2. Bg5 {[%clk 0:02:52]}  Nf6 {[%clk 0:02:56]} 3. Bxf6 {[%clk 0:02:51]}  exf6 {[%clk 0:02:55]} 4. e3 {[%clk 0:02:51]}  Bd6 {[%clk 0:02:55]} 5. g3 {[%clk 0:02:48]}  O-O {[%clk 0:02:54]} 6. Bg2 {[%clk 0:02:48]}  c6 {[%clk 0:02:52]} 7. Nd2 {[%clk 0:02:47]}  Nd7 {[%clk 0:02:51]} 8. Ne2 {[%clk 0:02:28]}  Re8 {[%clk 0:02:51]} 9. c4 {[%clk 0:02:24]}  dxc4 {[%clk 0:02:50]} 10. Nxc4 {[%clk 0:02:24]}  Bb4+ {[%clk 0:02:41]} 11. Nc3 {[%clk 0:02:21]}  Nb6 {[%clk 0:02:40]} 12. Nxb6 {[%clk 0:01:55]}  axb6 {[%clk 0:02:39]} 13. O-O {[%clk 0:01:55]}  Be6 {[%clk 0:02:17]} 14. Qc2 {[%clk 0:01:40]}  Rc8 {[%clk 0:01:37]} 15. Rfd1 {[%clk 0:01:33]}  Qe7 {[%clk 0:01:28]} 16. a3 {[%clk 0:01:18]}  Bd6 {[%clk 0:01:28]} 17. Rac1 {[%clk 0:01:11]}  f5 {[%clk 0:01:13]} 18. d5 {[%clk 0:00:52]}  cxd5 {[%clk 0:01:09]} 19. Bxd5 {[%clk 0:00:51]}  Be5 {[%clk 0:01:03]} 20. Qb3 {[%clk 0:00:39]}  Bxc3 {[%clk 0:00:46]} 21. Rxc3 {[%clk 0:00:38]}  Bxd5 {[%clk 0:00:35]} 22. Rxd5 {[%clk 0:00:33]}  Rxc3 {[%clk 0:00:28]} 23. Qxc3 {[%clk 0:00:32]}  Rd8 {[%clk 0:00:24]} 24. Qe5 {[%clk 0:00:23]}  Qxe5 {[%clk 0:00:19]} 25. Rxd8+ {[%clk 0:00:22]} 1-0


[Site "https://www.chess.com"]

[Event "Titled Tuesday Blitz September 27 Early 2022"]
[White "Wojtaszek, Radoslaw"]
[Black "Begunov, Konstantin"]
[WhiteFideId "1118358"]
[BlackFideId "4118510"]
[WhiteElo "2606"]
[BlackElo "2165"]
[Result "1/2-1/2"]
[Round "01"]
[TimeControl "180+1"]
[Date "2022.09.27"]
[WhiteClock "0:00:59"]
[BlackClock "0:01:17"]

1. e4 {[%clk 0:03:00]}  c5 {[%clk 0:02:57]} 2. Nf3 {[%clk 0:03:00]}  d6 {[%clk 0:02:57]} 3. Bb5+ {[%clk 0:02:59]}  Bd7 {[%clk 0:02:57]} 4. Bxd7+ {[%clk 0:02:58]}  Qxd7 {[%clk 0:02:58]} 5. c4 {[%clk 0:02:58]}  Nf6 {[%clk 0:02:57]} 6. Nc3 {[%clk 0:02:58]}  Nc6 {[%clk 0:02:57]} 7. d4 {[%clk 0:02:58]}  cxd4 {[%clk 0:02:58]} 8. Nxd4 {[%clk 0:02:58]}  Qg4 {[%clk 0:02:59]} 9. Qxg4 {[%clk 0:02:44]}  Nxg4 {[%clk 0:02:59]} 10. Nxc6 {[%clk 0:02:40]}  bxc6 {[%clk 0:03:00]} 11. Ke2 {[%clk 0:02:40]}  g6 {[%clk 0:03:00]} 12. c5 {[%clk 0:02:26]}  Bg7 {[%clk 0:02:52]} 13. cxd6 {[%clk 0:02:22]}  exd6 {[%clk 0:02:53]} 14. Rd1 {[%clk 0:02:22]}  Ke7 {[%clk 0:02:43]} 15. Bg5+ {[%clk 0:02:21]}  Bf6 {[%clk 0:02:30]} 16. Bxf6+ {[%clk 0:02:18]}  Nxf6 {[%clk 0:02:31]} 17. Rd4 {[%clk 0:02:18]}  Rhd8 {[%clk 0:02:25]} 18. Rad1 {[%clk 0:02:17]}  Rd7 {[%clk 0:02:15]} 19. b3 {[%clk 0:02:11]}  Rad8 {[%clk 0:02:13]} 20. f3 {[%clk 0:02:05]}  d5 {[%clk 0:02:10]} 21. exd5 {[%clk 0:02:04]}  Nxd5 {[%clk 0:02:11]} 22. Nxd5+ {[%clk 0:01:59]}  Rxd5 {[%clk 0:02:10]} 23. Rxd5 {[%clk 0:01:59]}  cxd5 {[%clk 0:02:10]} 24. Rc1 {[%clk 0:01:58]}  Kd6 {[%clk 0:02:10]} 25. Kd3 {[%clk 0:01:58]}  Rb8 {[%clk 0:02:01]} 26. g3 {[%clk 0:01:54]}  a5 {[%clk 0:01:57]} 27. Rc2 {[%clk 0:01:48]}  a4 {[%clk 0:01:43]} 28. Rc3 {[%clk 0:01:41]}  axb3 {[%clk 0:01:30]} 29. Rxb3 {[%clk 0:01:40]}  Ra8 {[%clk 0:01:28]} 30. a3 {[%clk 0:01:39]}  Kc5 {[%clk 0:01:19]} 31. Rc3+ {[%clk 0:01:30]}  Kd6 {[%clk 0:01:18]} 32. Rb3 {[%clk 0:01:13]}  Kc5 {[%clk 0:01:17]} 33. Rc3+ {[%clk 0:01:12]}  Kd6 {[%clk 0:01:17]} 34. Rb3 {[%clk 0:00:59]} 1/2-1/2


[Site "https://www.chess.com"]

[Event "Titled Tuesday Blitz September 27 Early 2022"]
[White "Yaniuk, Volodymyr"]
[Black "Vargas, Mauricio"]
[WhiteFideId "14133083"]
[BlackFideId "4404572"]
[WhiteElo "2141"]
[BlackElo "2004"]
[Result "1-0"]
[Round "01"]
[TimeControl "180+1"]
[Date "2022.09.27"]
[WhiteClock "0:01:23"]
[BlackClock "0:00:17"]

1. d4 {[%clk 0:03:00]}  d5 {[%clk 0:02:36]} 2. c4 {[%clk 0:02:58]}  c6 {[%clk 0:02:36]} 3. Nf3 {[%clk 0:02:57]}  e6 {[%clk 0:02:37]} 4. e3 {[%clk 0:02:57]}  dxc4 {[%clk 0:02:37]} 5. Bxc4 {[%clk 0:02:57]}  Nf6 {[%clk 0:02:38]} 6. O-O {[%clk 0:02:57]}  Nbd7 {[%clk 0:02:37]} 7. Nc3 {[%clk 0:02:52]}  Bd6 {[%clk 0:02:37]} 8. e4 {[%clk 0:02:50]}  Bc7 {[%clk 0:02:35]} 9. Bg5 {[%clk 0:02:45]}  h6 {[%clk 0:02:34]} 10. Bh4 {[%clk 0:02:42]}  g5 {[%clk 0:02:34]} 11. Bg3 {[%clk 0:02:42]}  b5 {[%clk 0:02:31]} 12. Bd3 {[%clk 0:02:40]}  Bb7 {[%clk 0:02:28]} 13. Rc1 {[%clk 0:02:37]}  O-O {[%clk 0:02:12]} 14. Bxc7 {[%clk 0:02:34]}  Qxc7 {[%clk 0:02:12]} 15. Nxb5 {[%clk 0:02:35]}  Qb8 {[%clk 0:02:07]} 16. Nc3 {[%clk 0:02:34]}  g4 {[%clk 0:01:44]} 17. Nd2 {[%clk 0:02:26]}  Qf4 {[%clk 0:01:42]} 18. e5 {[%clk 0:02:19]}  Nd5 {[%clk 0:01:40]} 19. Nde4 {[%clk 0:02:17]}  h5 {[%clk 0:01:35]} 20. Nd6 {[%clk 0:02:13]}  Rab8 {[%clk 0:01:23]} 21. Nxd5 {[%clk 0:02:07]}  cxd5 {[%clk 0:01:17]} 22. b4 {[%clk 0:02:05]}  Nb6 {[%clk 0:01:14]} 23. a4 {[%clk 0:02:03]}  h4 {[%clk 0:01:05]} 24. g3 {[%clk 0:01:53]}  hxg3 {[%clk 0:01:04]} 25. hxg3 {[%clk 0:01:53]}  Qg5 {[%clk 0:01:01]} 26. Kg2 {[%clk 0:01:46]}  Kg7 {[%clk 0:00:58]} 27. Rh1 {[%clk 0:01:44]}  Nc4 {[%clk 0:00:49]} 28. Rh7+ {[%clk 0:01:33]}  Kg8 {[%clk 0:00:46]} 29. Rh8+ {[%clk 0:01:25]}  Kxh8 {[%clk 0:00:41]} 30. Qh1+ {[%clk 0:01:24]}  Kg7 {[%clk 0:00:17]} 31. Qh7# {[%clk 0:01:23]} 1-0


[Site "https://www.chess.com"]

[Event "Titled Tuesday Blitz September 27 Early 2022"]
[White "Zaksaite, Salomeja"]
[Black "Papp, Levente"]
[WhiteFideId "12801496"]
[BlackFideId "751243"]
[WhiteElo "1953"]
[BlackElo "2341"]
[Result "0-1"]
[Round "01"]
[TimeControl "180+1"]
[Date "2022.09.27"]
[WhiteClock "0:00:01"]
[BlackClock "0:01:28"]

1. e4 {[%clk 0:03:00]}  e6 {[%clk 0:02:59]} 2. d4 {[%clk 0:03:00]}  d5 {[%clk 0:03:00]} 3. Nc3 {[%clk 0:02:59]}  Bb4 {[%clk 0:02:59]} 4. e5 {[%clk 0:02:58]}  Ne7 {[%clk 0:02:58]} 5. a3 {[%clk 0:02:56]}  Bxc3+ {[%clk 0:02:58]} 6. bxc3 {[%clk 0:02:55]}  b6 {[%clk 0:02:59]} 7. Qg4 {[%clk 0:02:54]}  Ng6 {[%clk 0:02:59]} 8. Bb5+ {[%clk 0:02:53]}  c6 {[%clk 0:02:57]} 9. Bd3 {[%clk 0:02:51]}  Ba6 {[%clk 0:02:57]} 10. Ne2 {[%clk 0:02:39]}  c5 {[%clk 0:02:53]} 11. Bxa6 {[%clk 0:01:57]}  Nxa6 {[%clk 0:02:51]} 12. h4 {[%clk 0:01:58]}  h5 {[%clk 0:02:50]} 13. Qg5 {[%clk 0:01:48]}  Qxg5 {[%clk 0:02:40]} 14. hxg5 {[%clk 0:01:48]}  Rc8 {[%clk 0:02:41]} 15. Ra2 {[%clk 0:01:33]}  Nb8 {[%clk 0:02:25]} 16. Be3 {[%clk 0:00:58]}  Nc6 {[%clk 0:02:05]} 17. a4 {[%clk 0:00:56]}  cxd4 {[%clk 0:02:00]} 18. cxd4 {[%clk 0:00:54]}  Nb4 {[%clk 0:02:00]} 19. Rb2 {[%clk 0:00:45]}  Nxc2+ {[%clk 0:01:59]} 20. Kd2 {[%clk 0:00:45]}  Na3 {[%clk 0:01:58]} 21. Kd3 {[%clk 0:00:29]}  Nc4 {[%clk 0:01:54]} 22. Rc2 {[%clk 0:00:24]}  Kd7 {[%clk 0:01:53]} 23. f4 {[%clk 0:00:11]}  Ne7 {[%clk 0:01:36]} 24. Bf2 {[%clk 0:00:03]}  Nc6 {[%clk 0:01:28]} 25. Rhc1 {[%clk 0:00:01]}  Nb4+ {[%clk 0:01:28]} 0-1


[Site "https://www.chess.com"]

[Event "Titled Tuesday Blitz September 27 Early 2022"]
[White "Zenin, Dmitry"]
[Black "Zelbel, Patrick"]
[WhiteFideId "4127897"]
[BlackFideId "24624322"]
[WhiteElo "2215"]
[BlackElo "2474"]
[Result "0-1"]
[Round "01"]
[TimeControl "180+1"]
[Date "2022.09.27"]
[WhiteClock "0:00:25"]
[BlackClock "0:01:42"]

1. d4 {[%clk 0:02:56]}  Nf6 {[%clk 0:02:56]} 2. c4 {[%clk 0:02:55]}  c5 {[%clk 0:02:54]} 3. d5 {[%clk 0:02:55]}  b5 {[%clk 0:02:53]} 4. cxb5 {[%clk 0:02:55]}  a6 {[%clk 0:02:53]} 5. bxa6 {[%clk 0:02:54]}  g6 {[%clk 0:02:53]} 6. Nc3 {[%clk 0:02:54]}  Bg7 {[%clk 0:02:53]} 7. Nf3 {[%clk 0:02:54]}  O-O {[%clk 0:02:51]} 8. g3 {[%clk 0:02:54]}  Nxa6 {[%clk 0:02:49]} 9. Bg2 {[%clk 0:02:53]}  d6 {[%clk 0:02:49]} 10. O-O {[%clk 0:02:52]}  Bf5 {[%clk 0:02:49]} 11. Ne1 {[%clk 0:02:52]}  Qc8 {[%clk 0:02:34]} 12. Nc2 {[%clk 0:02:47]}  Bh3 {[%clk 0:02:31]} 13. Ne3 {[%clk 0:02:47]}  Bxg2 {[%clk 0:02:31]} 14. Kxg2 {[%clk 0:02:46]}  Qb7 {[%clk 0:02:27]} 15. a3 {[%clk 0:02:07]}  Rfb8 {[%clk 0:02:27]} 16. Kg1 {[%clk 0:02:04]}  Nc7 {[%clk 0:02:27]} 17. Rb1 {[%clk 0:01:55]}  h5 {[%clk 0:02:27]} 18. Qd3 {[%clk 0:01:32]}  Qb3 {[%clk 0:02:22]} 19. Rd1 {[%clk 0:01:26]}  Nd7 {[%clk 0:02:19]} 20. Bd2 {[%clk 0:01:08]}  Ne5 {[%clk 0:02:19]} 21. Qc2 {[%clk 0:01:06]}  Qxc2 {[%clk 0:02:11]} 22. Nxc2 {[%clk 0:01:05]}  Nc4 {[%clk 0:02:12]} 23. Be1 {[%clk 0:00:52]}  Nxb2 {[%clk 0:02:05]} 24. Rdc1 {[%clk 0:00:51]}  Nc4 {[%clk 0:02:00]} 25. Rxb8+ {[%clk 0:00:50]}  Rxb8 {[%clk 0:02:01]} 26. Rb1 {[%clk 0:00:49]}  Rxb1 {[%clk 0:01:59]} 27. Nxb1 {[%clk 0:00:49]}  Nxd5 {[%clk 0:01:59]} 28. a4 {[%clk 0:00:47]}  Nc7 {[%clk 0:01:55]} 29. Nba3 {[%clk 0:00:40]}  Nxa3 {[%clk 0:01:48]} 30. Nxa3 {[%clk 0:00:40]}  Kf8 {[%clk 0:01:49]} 31. Ba5 {[%clk 0:00:35]}  Na6 {[%clk 0:01:48]} 32. e4 {[%clk 0:00:34]}  Ke8 {[%clk 0:01:47]} 33. Nc4 {[%clk 0:00:33]}  Kd7 {[%clk 0:01:45]} 34. Kf1 {[%clk 0:00:33]}  Kc6 {[%clk 0:01:44]} 35. Ke2 {[%clk 0:00:33]}  e6 {[%clk 0:01:44]} 36. Bd2 {[%clk 0:00:26]}  d5 {[%clk 0:01:42]} 37. exd5+ {[%clk 0:00:25]}  exd5 {[%clk 0:01:43]} 38. Na5+ {[%clk 0:00:25]}  Kb6 {[%clk 0:01:43]} 39. Nb3 {[%clk 0:00:25]}  c4 {[%clk 0:01:42]} 0-1


[Site "https://www.chess.com"]